[Event "*** Titled Tuesday Blitz"]
[Site "Chess.com"]
[Date "2021.03.16"]
[Round "4"]
[White "novocane"]
[Black "lagedema"]
[Result "1/2-1/2"]
[WhiteElo "2262"]
[BlackElo "2452"]
[TimeControl "180+1"]
[EndTime "10:40:14 PDT"]
[Termination "Game drawn by agreement"]

1. d4 {[%clk 0:02:59.3]} 1... d5 {[%clk 0:02:59.7]} 2. c4 {[%clk 0:02:59.1]}
2... c6 {[%clk 0:03:00.6]} 3. cxd5 {[%clk 0:02:59.3]} 3... cxd5 {[%clk
0:02:59.8]} 4. Bf4 {[%clk 0:02:59.7]} 4... Nf6 {[%clk 0:02:57.4]} 5. Nc3 {[%clk
0:02:59.8]} 5... Nc6 {[%clk 0:02:57.8]} 6. e3 {[%clk 0:02:57.2]} 6... Bf5 {[%clk
0:02:57.6]} 7. Qb3 {[%clk 0:02:56.5]} 7... Na5 {[%clk 0:02:58]} 8. Bb5+ {[%clk
0:02:28.7]} 8... Bd7 {[%clk 0:02:40.4]} 9. Qa4 {[%clk 0:02:21.6]} 9... Nc6
{[%clk 0:02:37.4]} 10. Nf3 {[%clk 0:02:09]} 10... a6 {[%clk 0:02:25.2]} 11. Bxc6
{[%clk 0:01:58.3]} 11... Bxc6 {[%clk 0:02:26.1]} 12. Qb3 {[%clk 0:01:57.9]}
12... e6 {[%clk 0:02:27]} 13. Ne5 {[%clk 0:01:57]} 13... Bd6 {[%clk 0:02:21.2]}
14. Nxc6 {[%clk 0:01:50.7]} 14... bxc6 {[%clk 0:02:22.1]} 15. Qb7 {[%clk
0:01:20]} 15... O-O {[%clk 0:02:17.7]} 16. Qxc6 {[%clk 0:01:14.4]} 16... Bxf4
{[%clk 0:02:17.9]} 17. exf4 {[%clk 0:01:15.2]} 17... Rb8 {[%clk 0:02:18]} 18.
Rb1 {[%clk 0:01:08.9]} 18... Qa5 {[%clk 0:02:09.7]} 19. O-O {[%clk 0:00:55.8]}
19... Rfc8 {[%clk 0:02:09.5]} 20. Qa4 {[%clk 0:00:55.6]} 20... Qxa4 {[%clk
0:01:59.4]} 21. Nxa4 {[%clk 0:00:55.4]} 21... Rc4 {[%clk 0:01:57.3]} 22. Nc5
{[%clk 0:00:28.2]} 22... Rxd4 {[%clk 0:01:48.6]} 23. Nxa6 {[%clk 0:00:24.7]}
23... Ra8 {[%clk 0:01:48.8]} 24. Rfc1 {[%clk 0:00:24.1]} 24... h5 {[%clk
0:01:47.7]} 25. Rc6 {[%clk 0:00:22.8]} 25... Rxf4 {[%clk 0:01:46.8]} 26. b4
{[%clk 0:00:22.1]} 26... Ng4 {[%clk 0:01:42.7]} 27. b5 {[%clk 0:00:17.4]} 27...
Ne5 {[%clk 0:01:41]} 28. Rc2 {[%clk 0:00:07.9]} 28... Rc4 {[%clk 0:01:37.5]} 29.
Rcb2 {[%clk 0:00:07]} 29... Nd3 {[%clk 0:01:27.7]} 30. Rd2 {[%clk 0:00:05.4]}
30... Nc5 {[%clk 0:01:24.7]} 31. Nxc5 {[%clk 0:00:04.7]} 31... Rxc5 {[%clk
0:01:24.5]} 32. b6 {[%clk 0:00:02.8]} 32... Rb8 {[%clk 0:01:24.9]} 33. Rdb2
{[%clk 0:00:01.5]} 33... Kf8 {[%clk 0:01:22.3]} 34. h3 {[%clk 0:00:02.4]} 34...
Ke7 {[%clk 0:01:22.4]} 35. a4 {[%clk 0:00:03]} 35... Ra5 {[%clk 0:01:21.9]} 36.
Rb4 {[%clk 0:00:03]} 36... Kd6 {[%clk 0:01:22]} 37. g3 {[%clk 0:00:03.4]} 37...
Rb7 {[%clk 0:01:21.8]} 38. Kg2 {[%clk 0:00:02.4]} 38... g5 {[%clk 0:01:22.3]}
39. Kf3 {[%clk 0:00:03.3]} 39... e5 {[%clk 0:01:20.8]} 40. Ke3 {[%clk
0:00:03.8]} 40... f5 {[%clk 0:01:20]} 41. Kd3 {[%clk 0:00:04.2]} 41... Kc6
{[%clk 0:01:15.7]} 42. Kc3 {[%clk 0:00:04.4]} 42... Rc5+ {[%clk 0:01:12.3]} 43.
Kd3 {[%clk 0:00:04.3]} 43... d4 {[%clk 0:01:12.6]} 44. f4 {[%clk 0:00:03.3]}
44... Rc3+ {[%clk 0:01:08.6]} 45. Kd2 {[%clk 0:00:03.3]} 45... Rxg3 {[%clk
0:01:09.5]} 46. fxe5 {[%clk 0:00:02.3]} 46... Rxh3 {[%clk 0:01:06]} 47. a5
{[%clk 0:00:02.7]} 47... Ra3 {[%clk 0:01:05.2]} 48. Rxd4 {[%clk 0:00:02.7]}
48... Rxa5 {[%clk 0:01:04.1]} 49. Rd6+ {[%clk 0:00:03.6]} 49... Kc5 {[%clk
0:01:02.3]} 50. Rf6 {[%clk 0:00:03.8]} 50... Kd4 {[%clk 0:00:59.5]} 51. Rxf5
{[%clk 0:00:04.1]} 51... Ra2+ {[%clk 0:00:58.2]} 52. Kd1 {[%clk 0:00:03.9]}
52... Ke4 {[%clk 0:00:57.6]} 53. Rxg5 {[%clk 0:00:04.2]} 53... Rf7 {[%clk
0:00:56.6]} 54. Rg1 {[%clk 0:00:04.3]} 54... Rd7+ {[%clk 0:00:53.8]} 55. Ke1
{[%clk 0:00:04.2]} 55... Rb7 {[%clk 0:00:48]} 56. Rh1 {[%clk 0:00:04.4]} 56...
Rxb6 {[%clk 0:00:43]} 57. Rxb6 {[%clk 0:00:01.7]} 57... Ra1+ {[%clk 0:00:43.4]}
58. Kf2 {[%clk 0:00:02.6]} 58... Rxh1 {[%clk 0:00:44.1]} 59. e6 {[%clk
0:00:02.7]} 59... Rh2+ {[%clk 0:00:44.6]} 60. Kg3 {[%clk 0:00:03.3]} 60... Re2
{[%clk 0:00:44.8]} 61. e7 {[%clk 0:00:03.7]} 61... Kf5 {[%clk 0:00:44.8]} 62.
Rh6 {[%clk 0:00:04.6]} 62... Kg5 {[%clk 0:00:43.9]} 63. Rh7 {[%clk 0:00:05]}
63... Re3+ {[%clk 0:00:44.4]} 64. Kf2 {[%clk 0:00:05.4]} 64... Re6 {[%clk
0:00:44.9]} 65. Kg3 {[%clk 0:00:05.3]} 65... h4+ {[%clk 0:00:44]} 66. Kf3 {[%clk
0:00:04.8]} 66... Re1 {[%clk 0:00:40.6]} 67. Kf2 {[%clk 0:00:05]} 67... Re5
{[%clk 0:00:38.9]} 68. Kg2 {[%clk 0:00:05.3]} 68... Kg4 {[%clk 0:00:37.7]} 69.
Rg7+ {[%clk 0:00:05.5]} 69... Kh5 {[%clk 0:00:37.5]} 70. Rh7+ {[%clk 0:00:05.7]}
70... Kg5 {[%clk 0:00:35.3]} 71. Rg7+ {[%clk 0:00:05.9]} 71... Kf6 {[%clk
0:00:35.2]} 72. Rh7 {[%clk 0:00:06.2]} 72... Re4 {[%clk 0:00:34.9]} 73. Kh3
{[%clk 0:00:06.1]} 73... Kg5 {[%clk 0:00:33.4]} 74. Rg7+ {[%clk 0:00:06.4]}
74... Kh6 {[%clk 0:00:32.8]} 75. Rf7 {[%clk 0:00:06.7]} 75... Kg6 {[%clk
0:00:32.2]} 76. Rf8 {[%clk 0:00:05.5]} 76... Rxe7 {[%clk 0:00:30]} 77. Kxh4
{[%clk 0:00:06.1]} 1/2-1/2

[Event "*** Titled Tuesday Blitz"]
[Site "Chess.com"]
[Date "2021.03.16"]
[Round "4"]
[White "vugarrasulov"]
[Black "vovachesss"]
[Result "1/2-1/2"]
[WhiteElo "2845"]
[BlackElo "2755"]
[TimeControl "180+1"]
[EndTime "10:40:16 PDT"]
[Termination "Game drawn by repetition"]

1. e4 {[%clk 0:03:00.9]} 1... e5 {[%clk 0:02:59.4]} 2. Nf3 {[%clk 0:03:01]} 2...
d6 {[%clk 0:03:00]} 3. d4 {[%clk 0:03:00.6]} 3... Nd7 {[%clk 0:03:00.6]} 4. Nc3
{[%clk 0:03:00]} 4... Be7 {[%clk 0:03:00.2]} 5. Bc4 {[%clk 0:02:58.9]} 5... c6
{[%clk 0:03:00.8]} 6. dxe5 {[%clk 0:02:54.9]} 6... dxe5 {[%clk 0:03:00.6]} 7.
Ng5 {[%clk 0:02:46.9]} 7... Bxg5 {[%clk 0:03:01]} 8. Qh5 {[%clk 0:02:47.1]} 8...
Qe7 {[%clk 0:03:01.5]} 9. Bxg5 {[%clk 0:02:46]} 9... Ngf6 {[%clk 0:03:02.1]} 10.
Qe2 {[%clk 0:02:43.5]} 10... Nc5 {[%clk 0:02:57.1]} 11. a4 {[%clk 0:02:38.5]}
11... Be6 {[%clk 0:02:54.1]} 12. O-O {[%clk 0:02:37.7]} 12... O-O {[%clk
0:02:54]} 13. a5 {[%clk 0:02:36.6]} 13... Rad8 {[%clk 0:02:49.8]} 14. Rfd1
{[%clk 0:02:33.7]} 14... b5 {[%clk 0:02:43.8]} 15. axb6 {[%clk 0:02:30.6]} 15...
axb6 {[%clk 0:02:44.7]} 16. b4 {[%clk 0:02:15]} 16... Bxc4 {[%clk 0:01:50]} 17.
Qxc4 {[%clk 0:02:15.9]} 17... Ne6 {[%clk 0:01:50.9]} 18. Bxf6 {[%clk 0:02:10.2]}
18... Qxf6 {[%clk 0:01:51]} 19. Rxd8 {[%clk 0:02:10.4]} 19... Nxd8 {[%clk
0:01:01]} 20. b5 {[%clk 0:02:10.5]} 20... Qd6 {[%clk 0:00:46.3]} 21. Rd1 {[%clk
0:02:03.4]} 21... Qe6 {[%clk 0:00:19.5]} 22. Qxe6 {[%clk 0:02:00.6]} 22... Nxe6
{[%clk 0:00:20.4]} 23. bxc6 {[%clk 0:02:00.3]} 23... Rc8 {[%clk 0:00:21]} 24.
Nd5 {[%clk 0:02:00.2]} 24... Kf8 {[%clk 0:00:20.9]} 25. c7 {[%clk 0:01:55.8]}
25... Nxc7 {[%clk 0:00:20.7]} 26. Nxb6 {[%clk 0:01:56.2]} 26... Re8 {[%clk
0:00:19.7]} 27. Nd7+ {[%clk 0:01:55.4]} 27... Kg8 {[%clk 0:00:18.2]} 28. c4
{[%clk 0:01:53.9]} 28... f6 {[%clk 0:00:17.9]} 29. f3 {[%clk 0:01:54.2]} 29...
Ne6 {[%clk 0:00:18.3]} 30. Nb6 {[%clk 0:01:42.8]} 30... Nd4 {[%clk 0:00:18.5]}
31. c5 {[%clk 0:01:38.3]} 31... Re6 {[%clk 0:00:18.1]} 32. Kf2 {[%clk
0:01:32.9]} 32... Rc6 {[%clk 0:00:18.1]} 33. Rc1 {[%clk 0:01:33.5]} 33... Nb3
{[%clk 0:00:16.1]} 34. Rc3 {[%clk 0:01:33.3]} 34... Nxc5 {[%clk 0:00:16.6]} 35.
Nd5 {[%clk 0:01:25.5]} 35... Kf7 {[%clk 0:00:13.4]} 36. Ke3 {[%clk 0:01:25.8]}
36... Ke6 {[%clk 0:00:13.1]} 37. Nb4 {[%clk 0:01:19.2]} 37... Rc8 {[%clk
0:00:12.3]} 38. g3 {[%clk 0:01:11.8]} 38... Kd6 {[%clk 0:00:12.5]} 39. Nd3
{[%clk 0:01:03.8]} 39... Rc7 {[%clk 0:00:10.1]} 40. Nb2 {[%clk 0:01:03.6]} 40...
Ne6 {[%clk 0:00:09.3]} 41. Rxc7 {[%clk 0:00:53.2]} 41... Nxc7 {[%clk 0:00:10.2]}
42. f4 {[%clk 0:00:53.6]} 42... Ke6 {[%clk 0:00:11.1]} 43. Nc4 {[%clk
0:00:53.2]} 43... exf4+ {[%clk 0:00:10.7]} 44. gxf4 {[%clk 0:00:53.2]} 44... g6
{[%clk 0:00:11.6]} 45. Kd4 {[%clk 0:00:51.2]} 45... Nb5+ {[%clk 0:00:09.8]} 46.
Kd3 {[%clk 0:00:51.4]} 46... h6 {[%clk 0:00:08.8]} 47. Ne3 {[%clk 0:00:50.7]}
47... Nd6 {[%clk 0:00:08.9]} 48. Kd4 {[%clk 0:00:45.8]} 48... h5 {[%clk
0:00:07.9]} 49. h3 {[%clk 0:00:43.1]} 49... Nb5+ {[%clk 0:00:08.4]} 50. Kc4
{[%clk 0:00:43.2]} 50... Nd6+ {[%clk 0:00:08.9]} 51. Kd3 {[%clk 0:00:43.8]}
51... g5 {[%clk 0:00:08.8]} 52. Nd5 {[%clk 0:00:39.6]} 52... gxf4 {[%clk
0:00:08.1]} 53. Nxf4+ {[%clk 0:00:40.5]} 53... Ke5 {[%clk 0:00:08]} 54. Ng6+
{[%clk 0:00:39.9]} 54... Ke6 {[%clk 0:00:08.5]} 55. Ke3 {[%clk 0:00:39.1]} 55...
f5 {[%clk 0:00:06.5]} 56. e5 {[%clk 0:00:38.4]} 56... Nc4+ {[%clk 0:00:03]} 57.
Kf4 {[%clk 0:00:38.8]} 57... h4 {[%clk 0:00:02.4]} 58. Nf8+ {[%clk 0:00:35.7]}
58... Kf7 {[%clk 0:00:02.9]} 59. Nd7 {[%clk 0:00:34.8]} 59... Ke6 {[%clk
0:00:03.5]} 60. Nc5+ {[%clk 0:00:35.1]} 60... Kd5 {[%clk 0:00:04.1]} 61. Nd7
{[%clk 0:00:29]} 61... Ke6 {[%clk 0:00:05]} 62. Nf8+ {[%clk 0:00:28.9]} 62...
Kf7 {[%clk 0:00:04.4]} 63. Nh7 {[%clk 0:00:29.4]} 63... Kg6 {[%clk 0:00:02.3]}
64. Nf6 {[%clk 0:00:28.7]} 64... Nb6 {[%clk 0:00:02]} 65. Ne8 {[%clk 0:00:19.9]}
65... Nd5+ {[%clk 0:00:02.6]} 66. Kf3 {[%clk 0:00:20.4]} 66... Ne7 {[%clk
0:00:03.3]} 67. Nd6 {[%clk 0:00:19.7]} 67... Nd5 {[%clk 0:00:03.7]} 68. Nb7
{[%clk 0:00:16.6]} 68... Kg5 {[%clk 0:00:04]} 69. Nc5 {[%clk 0:00:16.8]} 69...
Kg6 {[%clk 0:00:04.2]} 70. Nd3 {[%clk 0:00:15.1]} 70... Kf7 {[%clk 0:00:03.8]}
71. Nc5 {[%clk 0:00:12.9]} 71... Ke7 {[%clk 0:00:04.3]} 72. Kf2 {[%clk
0:00:07.5]} 72... Kf7 {[%clk 0:00:04.3]} 73. Ke2 {[%clk 0:00:07.4]} 73... Ke7
{[%clk 0:00:04.8]} 74. Kf3 {[%clk 0:00:08.3]} 74... Kf7 {[%clk 0:00:05.2]} 75.
Kf2 {[%clk 0:00:07.9]} 75... Ke7 {[%clk 0:00:04.8]} 76. Kf3 {[%clk 0:00:08.2]}
76... Kf7 {[%clk 0:00:05.4]} 77. Kf2 {[%clk 0:00:07.7]} 77... Ke7 {[%clk
0:00:05.8]} 78. Kf3 {[%clk 0:00:08.3]} 1/2-1/2

[Event "*** Titled Tuesday Blitz"]
[Site "Chess.com"]
[Date "2021.03.16"]
[Round "4"]
[White "ViktoriyaTarasova"]
[Black "bait_or_mate"]
[Result "0-1"]
[WhiteElo "2350"]
[BlackElo "2502"]
[TimeControl "180+1"]
[EndTime "10:40:19 PDT"]
[Termination "bait_or_mate won by resignation"]

1. d4 {[%clk 0:03:00.9]} 1... Nf6 {[%clk 0:02:59.7]} 2. c4 {[%clk 0:03:01]} 2...
e6 {[%clk 0:03:00]} 3. Nc3 {[%clk 0:03:01]} 3... Bb4 {[%clk 0:02:59.7]} 4. Nf3
{[%clk 0:03:01.1]} 4... O-O {[%clk 0:02:57.9]} 5. Bg5 {[%clk 0:02:58.8]} 5... h6
{[%clk 0:02:57.2]} 6. Bh4 {[%clk 0:02:57.3]} 6... c5 {[%clk 0:02:57.1]} 7. Rc1
{[%clk 0:02:55.2]} 7... cxd4 {[%clk 0:02:56.4]} 8. Nxd4 {[%clk 0:02:55.9]} 8...
Nc6 {[%clk 0:02:54.7]} 9. e3 {[%clk 0:02:54.2]} 9... Ne5 {[%clk 0:02:46.3]} 10.
Be2 {[%clk 0:02:50]} 10... Ng6 {[%clk 0:02:46.1]} 11. Bg3 {[%clk 0:02:49.4]}
11... d5 {[%clk 0:02:46.3]} 12. O-O {[%clk 0:02:45.7]} 12... dxc4 {[%clk
0:02:41.3]} 13. Bxc4 {[%clk 0:02:42.5]} 13... Bd7 {[%clk 0:02:41]} 14. Ndb5
{[%clk 0:02:39.7]} 14... Bc6 {[%clk 0:02:37.5]} 15. a3 {[%clk 0:02:31.6]} 15...
Bxc3 {[%clk 0:02:26]} 16. Nxc3 {[%clk 0:02:27.4]} 16... Qa5 {[%clk 0:02:22.3]}
17. Qe2 {[%clk 0:02:12.9]} 17... Rfd8 {[%clk 0:02:19.3]} 18. Rfd1 {[%clk
0:02:10.5]} 18... Nh5 {[%clk 0:02:07.8]} 19. Bd6 {[%clk 0:01:57.6]} 19... Qg5
{[%clk 0:01:49.8]} 20. f4 {[%clk 0:01:49.7]} 20... Qh4 {[%clk 0:01:49.7]} 21.
Qf2 {[%clk 0:01:37.5]} 21... Qxf2+ {[%clk 0:01:45.9]} 22. Kxf2 {[%clk
0:01:37.5]} 22... Nf6 {[%clk 0:01:46.8]} 23. h3 {[%clk 0:01:08.5]} 23... Rd7
{[%clk 0:01:44.2]} 24. Bb4 {[%clk 0:01:04.1]} 24... Rad8 {[%clk 0:01:35.9]} 25.
Rxd7 {[%clk 0:00:54.3]} 25... Rxd7 {[%clk 0:01:36.8]} 26. Rd1 {[%clk 0:00:54.8]}
26... Ne4+ {[%clk 0:01:37.2]} 27. Ke1 {[%clk 0:00:41]} 27... Rxd1+ {[%clk
0:01:32.6]} 28. Nxd1 {[%clk 0:00:40.4]} 28... b6 {[%clk 0:01:21.6]} 29. Kf1
{[%clk 0:00:24.7]} 29... Nh4 {[%clk 0:01:19.9]} 30. Be1 {[%clk 0:00:15]} 30...
Nxg2 {[%clk 0:01:18.1]} 31. Kxg2 {[%clk 0:00:11.3]} 31... Nd6+ {[%clk
0:01:18.1]} 32. Kf1 {[%clk 0:00:11.8]} 32... Nxc4 {[%clk 0:01:18]} 33. Bc3
{[%clk 0:00:12.1]} 33... g5 {[%clk 0:01:15.5]} 34. fxg5 {[%clk 0:00:11.3]} 34...
hxg5 {[%clk 0:01:16.4]} 35. Kf2 {[%clk 0:00:11.9]} 35... f5 {[%clk 0:01:16.3]}
36. Ke2 {[%clk 0:00:10.7]} 36... Kf7 {[%clk 0:01:16.1]} 37. Nf2 {[%clk
0:00:11.2]} 37... Bb5 {[%clk 0:01:04.8]} 38. Kf3 {[%clk 0:00:09.4]} 38... Kg6
{[%clk 0:00:58]} 39. Nd3 {[%clk 0:00:09.3]} 39... Kh5 {[%clk 0:00:53.2]} 40. Ne5
{[%clk 0:00:08.8]} 40... Nd6 {[%clk 0:00:52.1]} 41. Be1 {[%clk 0:00:04.5]} 41...
Ba6 {[%clk 0:00:47.5]} 42. b3 {[%clk 0:00:04.5]} 42... Bb7+ {[%clk 0:00:47.5]}
43. Ke2 {[%clk 0:00:04.8]} 43... Bd5 {[%clk 0:00:47.7]} 44. b4 {[%clk 0:00:04]}
44... Ne4 {[%clk 0:00:36.3]} 45. Kf1 {[%clk 0:00:04.4]} 45... g4 {[%clk
0:00:31]} 46. hxg4+ {[%clk 0:00:03.6]} 46... fxg4 {[%clk 0:00:31.9]} 47. Kg1
{[%clk 0:00:04.1]} 47... Nd6 {[%clk 0:00:28.7]} 48. Nd7 {[%clk 0:00:03.4]} 48...
Nc4 {[%clk 0:00:25.3]} 49. a4 {[%clk 0:00:03.2]} 49... Nxe3 {[%clk 0:00:24]} 50.
Nf6+ {[%clk 0:00:03.4]} 50... Kg5 {[%clk 0:00:23.7]} 51. Ne8 {[%clk 0:00:04]}
51... Bc6 {[%clk 0:00:20]} 52. Nd6 {[%clk 0:00:04.1]} 52... Nd5 {[%clk
0:00:15.6]} 53. Bd2+ {[%clk 0:00:03.8]} 53... Kf6 {[%clk 0:00:14.2]} 54. b5
{[%clk 0:00:04.2]} 54... Bd7 {[%clk 0:00:13.8]} 55. Ne4+ {[%clk 0:00:03.9]}
55... Ke5 {[%clk 0:00:13.3]} 56. Nf2 {[%clk 0:00:04.5]} 56... Kf5 {[%clk
0:00:12]} 57. Nd3 {[%clk 0:00:04.5]} 57... e5 {[%clk 0:00:11.5]} 58. Kf2 {[%clk
0:00:04.9]} 58... Nf6 {[%clk 0:00:11.7]} 59. Ke3 {[%clk 0:00:02.9]} 59... Ne4
{[%clk 0:00:10.6]} 60. Be1 {[%clk 0:00:03.5]} 60... Nd6 {[%clk 0:00:10.3]} 61.
Nb4 {[%clk 0:00:03.6]} 61... Nc4+ {[%clk 0:00:06.9]} 62. Kf2 {[%clk 0:00:04.1]}
62... Nb2 {[%clk 0:00:06.2]} 63. Nd5 {[%clk 0:00:04.3]} 63... Nxa4 {[%clk
0:00:05.5]} 64. Ne7+ {[%clk 0:00:04.9]} 64... Ke6 {[%clk 0:00:05.4]} 65. Nc6
{[%clk 0:00:05]} 65... Bxc6 {[%clk 0:00:05]} 66. bxc6 {[%clk 0:00:05.6]} 66...
Kd6 {[%clk 0:00:05.5]} 67. c7 {[%clk 0:00:05.8]} 67... Kxc7 {[%clk 0:00:05.6]}
68. Bd2 {[%clk 0:00:06.5]} 68... Kd6 {[%clk 0:00:05.7]} 69. Be3 {[%clk
0:00:07.1]} 69... Ke6 {[%clk 0:00:06]} 70. Kg3 {[%clk 0:00:07.7]} 70... Kf5
{[%clk 0:00:06.5]} 71. Bd2 {[%clk 0:00:08.3]} 71... Nc5 {[%clk 0:00:07]} 72. Be3
{[%clk 0:00:08.9]} 72... Ne4+ {[%clk 0:00:07.4]} 73. Kg2 {[%clk 0:00:08.5]}
73... Nc3 {[%clk 0:00:07.4]} 74. Bc1 {[%clk 0:00:09.2]} 74... Nd5 {[%clk
0:00:07.5]} 75. Be3 {[%clk 0:00:09.9]} 75... a5 {[%clk 0:00:07.5]} 76. Bd2
{[%clk 0:00:09.1]} 76... a4 {[%clk 0:00:07.6]} 77. Bc1 {[%clk 0:00:09.6]} 77...
b5 {[%clk 0:00:08]} 78. Ba3 {[%clk 0:00:10.2]} 78... b4 {[%clk 0:00:08.2]} 79.
Bb2 {[%clk 0:00:11.1]} 79... a3 {[%clk 0:00:08.4]} 80. Ba1 {[%clk 0:00:12]}
80... b3 {[%clk 0:00:08.7]} 81. Kf2 {[%clk 0:00:12.4]} 81... b2 {[%clk
0:00:09.1]} 82. Bxb2 {[%clk 0:00:13.2]} 82... axb2 {[%clk 0:00:10]} 0-1

[Event "*** Titled Tuesday Blitz"]
[Site "Chess.com"]
[Date "2021.03.16"]
[Round "4"]
[White "AlexPapasimakopoulos"]
[Black "sergoy"]
[Result "1-0"]
[WhiteElo "2618"]
[BlackElo "2874"]
[TimeControl "180+1"]
[EndTime "10:40:33 PDT"]
[Termination "AlexPapasimakopoulos won by resignation"]

1. d4 {[%clk 0:02:41.4]} 1... Nf6 {[%clk 0:02:54.4]} 2. c4 {[%clk 0:02:41.3]}
2... e6 {[%clk 0:02:54.2]} 3. Nc3 {[%clk 0:02:39.8]} 3... Bb4 {[%clk 0:02:53.4]}
4. Qc2 {[%clk 0:02:38.3]} 4... d5 {[%clk 0:02:51.3]} 5. cxd5 {[%clk 0:02:38]}
5... exd5 {[%clk 0:02:52.2]} 6. Bg5 {[%clk 0:02:37]} 6... h6 {[%clk 0:02:50]} 7.
Bh4 {[%clk 0:02:33.4]} 7... g5 {[%clk 0:02:48.3]} 8. Bg3 {[%clk 0:02:33.6]} 8...
Nc6 {[%clk 0:02:47.7]} 9. e3 {[%clk 0:02:33]} 9... h5 {[%clk 0:02:47.7]} 10. Bb5
{[%clk 0:02:32.3]} 10... Ne4 {[%clk 0:02:45.6]} 11. f3 {[%clk 0:02:26.5]} 11...
Nxg3 {[%clk 0:02:41.7]} 12. hxg3 {[%clk 0:02:27.4]} 12... Qd6 {[%clk 0:02:30.1]}
13. Ne2 {[%clk 0:02:24.3]} 13... Bd7 {[%clk 0:02:30.1]} 14. g4 {[%clk
0:02:11.7]} 14... h4 {[%clk 0:02:28.2]} 15. O-O-O {[%clk 0:02:11.3]} 15... a6
{[%clk 0:02:27.2]} 16. Bd3 {[%clk 0:02:07.3]} 16... O-O-O {[%clk 0:02:24.4]} 17.
a3 {[%clk 0:02:04.6]} 17... Bxc3 {[%clk 0:02:20.2]} 18. Nxc3 {[%clk 0:02:05.5]}
18... Be6 {[%clk 0:02:16.8]} 19. Kb1 {[%clk 0:02:02]} 19... Na5 {[%clk
0:02:02.9]} 20. Na4 {[%clk 0:01:53.2]} 20... Nc4 {[%clk 0:02:02.1]} 21. Bxc4
{[%clk 0:01:50.3]} 21... dxc4 {[%clk 0:02:03]} 22. Nc5 {[%clk 0:01:50.9]} 22...
b6 {[%clk 0:01:53]} 23. Nxa6 {[%clk 0:01:44.4]} 23... h3 {[%clk 0:01:28.1]} 24.
Rxh3 {[%clk 0:01:25.4]} 24... Rxh3 {[%clk 0:01:27.5]} 25. gxh3 {[%clk
0:01:26.3]} 25... Qg3 {[%clk 0:01:27.2]} 26. Qe4 {[%clk 0:01:21.8]} 26... Bd5
{[%clk 0:01:22.4]} 27. Qf5+ {[%clk 0:01:18.6]} 27... Kb7 {[%clk 0:01:21]} 28.
Nb4 {[%clk 0:01:17.5]} 28... Bxf3 {[%clk 0:01:08]} 29. Rc1 {[%clk 0:01:16.3]}
29... Qxh3 {[%clk 0:00:56.9]} 30. Qxg5 {[%clk 0:01:07.1]} 30... Rd6 {[%clk
0:00:49.2]} 31. Qf4 {[%clk 0:00:41.4]} 31... b5 {[%clk 0:00:35.2]} 32. g5 {[%clk
0:00:39.7]} 32... Bg2 {[%clk 0:00:25.9]} 33. Qe5 {[%clk 0:00:37.5]} 33... Qd7
{[%clk 0:00:19.7]} 34. a4 {[%clk 0:00:34]} 34... Re6 {[%clk 0:00:14.5]} 35. Qc5
{[%clk 0:00:26]} 35... Rxe3 {[%clk 0:00:11.6]} 36. axb5 {[%clk 0:00:26.1]} 36...
Re8 {[%clk 0:00:11.3]} 37. Rxc4 {[%clk 0:00:20.7]} 37... Be4+ {[%clk 0:00:11]}
38. Kc1 {[%clk 0:00:20.6]} 38... Ra8 {[%clk 0:00:06.4]} 39. Nc6 {[%clk
0:00:20.5]} 39... Bd5 {[%clk 0:00:04.6]} 40. Rc3 {[%clk 0:00:15.6]} 40... Qd6
{[%clk 0:00:02.6]} 41. Qxd6 {[%clk 0:00:15.5]} 41... cxd6 {[%clk 0:00:03.5]} 42.
Ne7 {[%clk 0:00:15.6]} 42... Be4 {[%clk 0:00:03.3]} 43. Re3 {[%clk 0:00:15.2]}
43... d5 {[%clk 0:00:03.7]} 44. Rc3 {[%clk 0:00:15.5]} 44... Kb6 {[%clk
0:00:03.8]} 45. Rc5 {[%clk 0:00:14.8]} 45... Rh8 {[%clk 0:00:02.8]} 46. Nxd5+
{[%clk 0:00:14.8]} 46... Bxd5 {[%clk 0:00:02]} 47. Rxd5 {[%clk 0:00:15.7]} 47...
Rh2 {[%clk 0:00:02.5]} 48. Kb1 {[%clk 0:00:15.8]} 48... Rd2 {[%clk 0:00:02.1]}
49. Ka2 {[%clk 0:00:16.1]} 49... Rd3 {[%clk 0:00:02.7]} 50. b3 {[%clk
0:00:16.1]} 50... Ka5 {[%clk 0:00:02]} 51. Ka3 {[%clk 0:00:16.4]} 51... Rg3
{[%clk 0:00:02.2]} 52. b6+ {[%clk 0:00:15.1]} 52... Kxb6 {[%clk 0:00:02.2]} 53.
Kb4 {[%clk 0:00:15.7]} 53... Rg4 {[%clk 0:00:02.2]} 54. Kc4 {[%clk 0:00:15.6]}
54... Kc6 {[%clk 0:00:02.6]} 55. Rf5 {[%clk 0:00:16]} 55... Kd6 {[%clk
0:00:02.3]} 56. Rf6+ {[%clk 0:00:16.3]} 56... Ke7 {[%clk 0:00:02.2]} 57. Rf5
{[%clk 0:00:16.9]} 57... Ke6 {[%clk 0:00:02.6]} 58. Re5+ {[%clk 0:00:17.6]}
58... Kd6 {[%clk 0:00:03.2]} 59. b4 {[%clk 0:00:17.9]} 59... Rg1 {[%clk
0:00:03.6]} 60. Rf5 {[%clk 0:00:17.6]} 60... Rc1+ {[%clk 0:00:04]} 61. Kb5
{[%clk 0:00:17.6]} 61... Ke6 {[%clk 0:00:04.5]} 62. Re5+ {[%clk 0:00:17.5]}
62... Kd6 {[%clk 0:00:04.8]} 63. Rf5 {[%clk 0:00:17.7]} 63... Ke6 {[%clk
0:00:05]} 64. Rf6+ {[%clk 0:00:18.4]} 64... Ke7 {[%clk 0:00:05.5]} 65. d5 {[%clk
0:00:18.4]} 65... Rd1 {[%clk 0:00:05]} 66. d6+ {[%clk 0:00:18.8]} 66... Ke8
{[%clk 0:00:05.5]} 67. Kc6 {[%clk 0:00:18.2]} 67... Rc1+ {[%clk 0:00:06]} 68.
Kb6 {[%clk 0:00:17.9]} 68... Rd1 {[%clk 0:00:06.3]} 69. b5 {[%clk 0:00:17.9]}
69... Kd7 {[%clk 0:00:06.8]} 70. Kb7 {[%clk 0:00:16.4]} 70... Rd5 {[%clk
0:00:06.8]} 71. b6 {[%clk 0:00:15.3]} 71... Rxg5 {[%clk 0:00:07.4]} 72. Rxf7+
{[%clk 0:00:15.6]} 72... Kxd6 {[%clk 0:00:07.9]} 73. Ka7 {[%clk 0:00:12.9]}
73... Ra5+ {[%clk 0:00:06.5]} 74. Kb8 {[%clk 0:00:12.8]} 74... Rb5 {[%clk
0:00:06.4]} 75. b7 {[%clk 0:00:13.1]} 75... Rb1 {[%clk 0:00:05.5]} 76. Rf2
{[%clk 0:00:12.6]} 76... Kc6 {[%clk 0:00:05.2]} 77. Rc2+ {[%clk 0:00:11.2]}
77... Kd7 {[%clk 0:00:05.6]} 78. Ra2 {[%clk 0:00:09.2]} 78... Rb3 {[%clk
0:00:04]} 79. Ka7 {[%clk 0:00:09.2]} 1-0

[Event "*** Titled Tuesday Blitz"]
[Site "Chess.com"]
[Date "2021.03.16"]
[Round "5"]
[White "Mikhail_Golubev"]
[Black "Schachmalanders"]
[Result "1-0"]
[WhiteElo "2545"]
[BlackElo "2359"]
[TimeControl "180+1"]
[EndTime "10:49:09 PDT"]
[Termination "Mikhail_Golubev won by resignation"]

1. e4 {[%clk 0:03:00.9]} 1... c5 {[%clk 0:02:59.7]} 2. Nf3 {[%clk 0:02:57.3]}
2... d6 {[%clk 0:02:59.2]} 3. d4 {[%clk 0:02:57.7]} 3... cxd4 {[%clk 0:03:00.1]}
4. Nxd4 {[%clk 0:02:57.9]} 4... Nf6 {[%clk 0:02:59.9]} 5. Nc3 {[%clk 0:02:58.5]}
5... a6 {[%clk 0:03:00.4]} 6. Bc4 {[%clk 0:02:57.5]} 6... e6 {[%clk 0:02:59.5]}
7. O-O {[%clk 0:02:57.7]} 7... Nbd7 {[%clk 0:02:59.8]} 8. Bxe6 {[%clk
0:02:57.1]} 8... fxe6 {[%clk 0:02:53.2]} 9. Nxe6 {[%clk 0:02:58]} 9... Qa5
{[%clk 0:02:43.3]} 10. Bd2 {[%clk 0:02:39.1]} 10... Nc5 {[%clk 0:02:17.5]} 11.
Nd5 {[%clk 0:02:29.1]} 1-0